[Event "Early-Titled-Tuesday-Blitz-February-27-2024"]
[Site "Chess.com"]
[Date "2024.02.27"]
[Round "1"]
[White "BilicVladimir"]
[Black "annamaja"]
[Result "1/2-1/2"]
[WhiteElo "2695"]
[BlackElo "2407"]
[TimeControl "180+1"]
[EndTime "8:07:48 PST"]
[Termination "Game drawn by repetition"]

1. e4 {[%clk 0:03:00.9]} 1... e6 {[%clk 0:02:58.6]} 2. d4 {[%clk 0:03:00.3]}
2... d5 {[%clk 0:02:58.4]} 3. Nd2 {[%clk 0:03:00.3]} 3... c5 {[%clk 0:02:55.1]}
4. exd5 {[%clk 0:02:59.8]} 4... Qxd5 {[%clk 0:02:55.2]} 5. Ngf3 {[%clk 0:03:00]}
5... cxd4 {[%clk 0:02:55.2]} 6. Bc4 {[%clk 0:03:00.1]} 6... Qd6 {[%clk
0:02:55.3]} 7. Qe2 {[%clk 0:03:00.5]} 7... Nc6 {[%clk 0:02:52.3]} 8. O-O {[%clk
0:03:00.4]} 8... Nf6 {[%clk 0:02:50.2]} 9. Nb3 {[%clk 0:03:00.2]} 9... e5 {[%clk
0:02:37.1]} 10. Ng5 {[%clk 0:02:55.2]} 10... Be6 {[%clk 0:02:25.9]} 11. Bxe6
{[%clk 0:02:52.1]} 11... fxe6 {[%clk 0:02:25.9]} 12. c3 {[%clk 0:02:41]} 12...
d3 {[%clk 0:02:18.5]} 13. Qf3 {[%clk 0:02:35]} 13... Be7 {[%clk 0:02:16.6]} 14.
Rd1 {[%clk 0:02:30.6]} 14... Rd8 {[%clk 0:02:15.7]} 15. Be3 {[%clk 0:02:26.7]}
15... O-O {[%clk 0:02:08.8]} 16. Bc5 {[%clk 0:02:26.3]} 16... Qd7 {[%clk
0:01:51.6]} 17. Bxe7 {[%clk 0:02:21.9]} 17... Qxe7 {[%clk 0:01:34.7]} 18. Rxd3
{[%clk 0:02:13.1]} 18... e4 {[%clk 0:01:34.4]} 19. Nxe4 {[%clk 0:01:46.2]} 19...
Ne5 {[%clk 0:01:12.9]} 20. Nxf6+ {[%clk 0:01:42.9]} 20... Kh8 {[%clk 0:00:35.2]}
21. Qh3 {[%clk 0:01:42.3]} 21... Qxf6 {[%clk 0:00:24.1]} 22. Rxd8 {[%clk
0:01:41.5]} 22... Qxf2+ {[%clk 0:00:17.6]} 23. Kh1 {[%clk 0:01:41.5]} 23... Rxd8
{[%clk 0:00:18]} 24. Qxe6 {[%clk 0:01:37.1]} 24... Rf8 {[%clk 0:00:13.7]} 25. h3
{[%clk 0:01:29.7]} 25... Ng6 {[%clk 0:00:13.8]} 26. Re1 {[%clk 0:00:52.4]} 26...
Qxb2 {[%clk 0:00:11.1]} 27. Qe2 {[%clk 0:00:39.6]} 27... Qxc3 {[%clk 0:00:09.7]}
28. Rc1 {[%clk 0:00:38.1]} 28... Qg3 {[%clk 0:00:08.8]} 29. Qe4 {[%clk
0:00:33.2]} 29... h6 {[%clk 0:00:06.9]} 30. Nd4 {[%clk 0:00:29.8]} 30... b6
{[%clk 0:00:05.7]} 31. Nf5 {[%clk 0:00:24.6]} 31... Qg5 {[%clk 0:00:06]} 32. Rf1
{[%clk 0:00:23]} 32... Nh4 {[%clk 0:00:04.5]} 33. g4 {[%clk 0:00:21.1]} 33...
Nxf5 {[%clk 0:00:04.2]} 34. Rxf5 {[%clk 0:00:20.1]} 34... Rxf5 {[%clk
0:00:04.3]} 35. gxf5 {[%clk 0:00:19.8]} 35... Qf6 {[%clk 0:00:04.6]} 36. Qe8+
{[%clk 0:00:19]} 36... Kh7 {[%clk 0:00:04.9]} 37. Qe4 {[%clk 0:00:18.3]} 37...
a5 {[%clk 0:00:05.2]} 38. Kg2 {[%clk 0:00:18.5]} 38... b5 {[%clk 0:00:05.4]} 39.
Kf3 {[%clk 0:00:18.6]} 39... b4 {[%clk 0:00:04.9]} 40. Ke2 {[%clk 0:00:17.9]}
40... h5 {[%clk 0:00:05.4]} 41. Kd3 {[%clk 0:00:17.8]} 41... Qc3+ {[%clk
0:00:05.5]} 42. Ke2 {[%clk 0:00:18.2]} 42... Qb2+ {[%clk 0:00:06]} 43. Kf1
{[%clk 0:00:17.9]} 43... Qc1+ {[%clk 0:00:05.9]} 44. Ke2 {[%clk 0:00:17.9]}
44... Qb2+ {[%clk 0:00:06.1]} 45. Kf1 {[%clk 0:00:18.4]} 45... Kg8 {[%clk
0:00:05.8]} 46. Qe6+ {[%clk 0:00:17.9]} 46... Kf8 {[%clk 0:00:06.5]} 47. Qd6+
{[%clk 0:00:17.8]} 47... Kf7 {[%clk 0:00:06.7]} 48. Qe6+ {[%clk 0:00:18]} 48...
Kf8 {[%clk 0:00:07.2]} 49. Qd6+ {[%clk 0:00:18.5]} 49... Kg8 {[%clk 0:00:06.6]}
50. Qe6+ {[%clk 0:00:18.5]} 50... Kf8 {[%clk 0:00:06.6]} 1/2-1/2

[Event "Early-Titled-Tuesday-Blitz-February-27-2024"]
[Site "Chess.com"]
[Date "2024.02.27"]
[Round "1"]
[White "ilya2700"]
[Black "HPanesso"]
[Result "1-0"]
[WhiteElo "2373"]
[BlackElo "2642"]
[TimeControl "180+1"]
[EndTime "8:07:48 PST"]
[Termination "ilya2700 won by resignation"]

1. c4 {[%clk 0:02:44.6]} 1... g6 {[%clk 0:02:59.1]} 2. d4 {[%clk 0:02:43.3]}
2... Bg7 {[%clk 0:02:58.5]} 3. Nc3 {[%clk 0:02:43.6]} 3... d6 {[%clk 0:02:58.4]}
4. e4 {[%clk 0:02:43.2]} 4... e5 {[%clk 0:02:58.3]} 5. dxe5 {[%clk 0:02:41.4]}
5... Bxe5 {[%clk 0:02:58]} 6. Nf3 {[%clk 0:02:38]} 6... Bg7 {[%clk 0:02:53.5]}
7. Be3 {[%clk 0:02:34.9]} 7... Nc6 {[%clk 0:02:52.9]} 8. h3 {[%clk 0:02:34.4]}
8... Nge7 {[%clk 0:02:51.7]} 9. Bd3 {[%clk 0:02:27.1]} 9... O-O {[%clk
0:02:51.2]} 10. Qd2 {[%clk 0:02:21.2]} 10... f5 {[%clk 0:02:50.8]} 11. Bh6
{[%clk 0:02:13]} 11... fxe4 {[%clk 0:02:48.7]} 12. Bxe4 {[%clk 0:01:49.2]} 12...
Be6 {[%clk 0:02:40.5]} 13. Bxg7 {[%clk 0:01:36.9]} 13... Kxg7 {[%clk 0:02:39.5]}
14. Nd5 {[%clk 0:01:35.5]} 14... Ne5 {[%clk 0:02:16.8]} 15. Qc3 {[%clk
0:01:24.8]} 15... Nc6 {[%clk 0:02:11.4]} 16. O-O-O {[%clk 0:01:23.4]} 16... Kg8
{[%clk 0:01:58.3]} 17. h4 {[%clk 0:01:19.8]} 17... Nxf3 {[%clk 0:01:29.8]} 18.
gxf3 {[%clk 0:01:16.3]} 18... Ne5 {[%clk 0:01:17.9]} 19. h5 {[%clk 0:01:08.2]}
19... Bf5 {[%clk 0:01:09.7]} 20. hxg6 {[%clk 0:01:04.1]} 20... Nxg6 {[%clk
0:01:10.6]} 21. Rdg1 {[%clk 0:00:50.7]} 21... Bxe4 {[%clk 0:00:19.9]} 22. fxe4
{[%clk 0:00:49.5]} 22... Qe8 {[%clk 0:00:15.7]} 23. Nxc7 {[%clk 0:00:36.9]}
23... Qe5 {[%clk 0:00:15.6]} 24. Qxe5 {[%clk 0:00:35.1]} 24... dxe5 {[%clk
0:00:15.4]} 25. Nxa8 {[%clk 0:00:35.5]} 25... Rxa8 {[%clk 0:00:16.3]} 26. Rh5
{[%clk 0:00:33.6]} 26... Re8 {[%clk 0:00:15.7]} 27. Rf5 {[%clk 0:00:32.5]} 27...
Re7 {[%clk 0:00:15.4]} 28. Rf6 {[%clk 0:00:31.5]} 28... Kg7 {[%clk 0:00:13]} 29.
Rd6 {[%clk 0:00:29.8]} 29... Kf7 {[%clk 0:00:12.4]} 30. Kc2 {[%clk 0:00:27.9]}
30... b6 {[%clk 0:00:09.5]} 31. Kd3 {[%clk 0:00:25.9]} 31... Nf4+ {[%clk
0:00:09.7]} 32. Ke3 {[%clk 0:00:26.3]} 32... Ne6 {[%clk 0:00:09.3]} 33. Rgd1
{[%clk 0:00:24.7]} 33... Kf6 {[%clk 0:00:09.2]} 34. b4 {[%clk 0:00:22.8]} 34...
h5 {[%clk 0:00:08.9]} 35. c5 {[%clk 0:00:22.8]} 35... bxc5 {[%clk 0:00:09]} 36.
bxc5 {[%clk 0:00:23.7]} 36... h4 {[%clk 0:00:08.4]} 37. c6 {[%clk 0:00:23.9]}
37... Rc7 {[%clk 0:00:08.2]} 38. Rh1 {[%clk 0:00:21.4]} 38... Ke7 {[%clk
0:00:07.1]} 39. Rd7+ {[%clk 0:00:21.8]} 39... Rxd7 {[%clk 0:00:07.5]} 40. cxd7
{[%clk 0:00:22.2]} 40... Kxd7 {[%clk 0:00:08.4]} 41. Rxh4 {[%clk 0:00:22.2]}
41... Kd6 {[%clk 0:00:08.3]} 42. Rh6 {[%clk 0:00:22.1]} 42... a5 {[%clk
0:00:08.6]} 43. a4 {[%clk 0:00:18.1]} 43... Ke7 {[%clk 0:00:07.7]} 44. Rxe6+
{[%clk 0:00:18.6]} 44... Kxe6 {[%clk 0:00:07.1]} 45. f4 {[%clk 0:00:19.4]} 45...
exf4+ {[%clk 0:00:08]} 46. Kxf4 {[%clk 0:00:19.6]} 46... Kf6 {[%clk 0:00:08.9]}
47. e5+ {[%clk 0:00:20.1]} 47... Ke6 {[%clk 0:00:09.8]} 48. Ke4 {[%clk
0:00:20.7]} 48... Ke7 {[%clk 0:00:10.5]} 49. Kd5 {[%clk 0:00:21.4]} 49... Kd7
{[%clk 0:00:11]} 50. Kc5 {[%clk 0:00:19.8]} 50... Ke6 {[%clk 0:00:08.1]} 51. Kb5
{[%clk 0:00:20.4]} 51... Kxe5 {[%clk 0:00:08.7]} 52. Kxa5 {[%clk 0:00:21.1]}
52... Kd6 {[%clk 0:00:09.6]} 53. Kb6 {[%clk 0:00:21.6]} 53... Kd7 {[%clk
0:00:09.7]} 54. Kb7 {[%clk 0:00:22.3]} 1-0

[Event "Early-Titled-Tuesday-Blitz-February-27-2024"]
[Site "Chess.com"]
[Date "2024.02.27"]
[Round "1"]
[White "dpopadic"]
[Black "SirStrateg"]
[Result "0-1"]
[WhiteElo "2363"]
[BlackElo "2661"]
[TimeControl "180+1"]
[EndTime "8:07:49 PST"]
[Termination "SirStrateg won on time"]

1. e4 {[%clk 0:02:55.3]} 1... Nf6 {[%clk 0:03:00]} 2. e5 {[%clk 0:02:54.4]} 2...
Nd5 {[%clk 0:03:00.4]} 3. d4 {[%clk 0:02:54.3]} 3... Nb6 {[%clk 0:03:00.8]} 4.
a4 {[%clk 0:02:50.7]} 4... a5 {[%clk 0:03:00.6]} 5. Nf3 {[%clk 0:02:49.8]} 5...
d5 {[%clk 0:03:00.8]} 6. Bd3 {[%clk 0:02:49.1]} 6... Bg4 {[%clk 0:03:00.2]} 7.
h3 {[%clk 0:02:46.7]} 7... Bxf3 {[%clk 0:03:00.6]} 8. Qxf3 {[%clk 0:02:45.8]}
8... e6 {[%clk 0:03:01.3]} 9. O-O {[%clk 0:02:43.7]} 9... c5 {[%clk 0:03:01.4]}
10. c3 {[%clk 0:02:43.4]} 10... Nc6 {[%clk 0:03:01.4]} 11. Be3 {[%clk
0:02:38.4]} 11... Rc8 {[%clk 0:02:58.8]} 12. Qg3 {[%clk 0:02:29.9]} 12... g6
{[%clk 0:02:54.8]} 13. Bb5 {[%clk 0:02:21.2]} 13... cxd4 {[%clk 0:02:49.7]} 14.
cxd4 {[%clk 0:02:20.6]} 14... h5 {[%clk 0:02:48.5]} 15. Nd2 {[%clk 0:02:09.4]}
15... Be7 {[%clk 0:02:42.3]} 16. Nf3 {[%clk 0:02:05.4]} 16... h4 {[%clk
0:02:38.8]} 17. Qg4 {[%clk 0:02:03.6]} 17... Rh5 {[%clk 0:02:38.6]} 18. Rac1
{[%clk 0:01:59.5]} 18... Kf8 {[%clk 0:02:36.3]} 19. b3 {[%clk 0:01:46.5]} 19...
Kg7 {[%clk 0:02:35.7]} 20. Bxc6 {[%clk 0:01:45.8]} 20... bxc6 {[%clk 0:02:11.3]}
21. Rc2 {[%clk 0:01:43.5]} 21... Nd7 {[%clk 0:02:10.8]} 22. Rfc1 {[%clk
0:01:39.7]} 22... Qb6 {[%clk 0:01:50.3]} 23. Nd2 {[%clk 0:01:37.8]} 23... Ba3
{[%clk 0:01:43.8]} 24. Ra1 {[%clk 0:01:32.6]} 24... Bb4 {[%clk 0:01:44.2]} 25.
Rb1 {[%clk 0:01:31.8]} 25... Qd8 {[%clk 0:01:19.6]} 26. Rbc1 {[%clk 0:01:25.5]}
26... c5 {[%clk 0:01:17.8]} 27. dxc5 {[%clk 0:01:24]} 27... Nxe5 {[%clk
0:01:13.9]} 28. Bd4 {[%clk 0:01:22]} 28... Kg8 {[%clk 0:01:13.7]} 29. Bxe5
{[%clk 0:01:09.7]} 29... Rxe5 {[%clk 0:01:13.4]} 30. Nf3 {[%clk 0:01:09.3]}
30... Re4 {[%clk 0:01:13.4]} 31. Qg5 {[%clk 0:01:05.3]} 31... Ba3 {[%clk
0:00:59.9]} 32. Ra1 {[%clk 0:00:55.4]} 32... Bb4 {[%clk 0:00:56.3]} 33. Rac1
{[%clk 0:00:55]} 33... Qxg5 {[%clk 0:00:49.3]} 34. Nxg5 {[%clk 0:00:54.2]} 34...
Rd4 {[%clk 0:00:44.6]} 35. c6 {[%clk 0:00:52.5]} 35... Rd2 {[%clk 0:00:38.7]}
36. Nf3 {[%clk 0:00:47.5]} 36... Rxc2 {[%clk 0:00:39]} 37. Rxc2 {[%clk
0:00:47.5]} 37... Kf8 {[%clk 0:00:39.6]} 38. Nd4 {[%clk 0:00:36.7]} 38... Ke7
{[%clk 0:00:37.9]} 39. Nb5 {[%clk 0:00:36.4]} 39... e5 {[%clk 0:00:35.3]} 40.
Kf1 {[%clk 0:00:34.2]} 40... d4 {[%clk 0:00:34.2]} 41. Ke2 {[%clk 0:00:34.3]}
41... Ke6 {[%clk 0:00:26.1]} 42. f3 {[%clk 0:00:26.6]} 42... Kd5 {[%clk
0:00:21.9]} 43. c7 {[%clk 0:00:24.1]} 43... Bd6 {[%clk 0:00:21.5]} 44. b4 {[%clk
0:00:07.1]} 44... axb4 {[%clk 0:00:20.6]} 45. a5 {[%clk 0:00:06.5]} 45... b3
{[%clk 0:00:21.2]} 46. Rb2 {[%clk 0:00:06]} 46... Bxc7 {[%clk 0:00:21.1]} 47.
Rxb3 {[%clk 0:00:06.1]} 47... Bxa5 {[%clk 0:00:20.6]} 48. Na3 {[%clk 0:00:02.7]}
48... f5 {[%clk 0:00:19.1]} 49. Rb5+ {[%clk 0:00:01.9]} 49... Rc5 {[%clk
0:00:19.5]} 50. Rb7 {[%clk 0:00:01.8]} 50... e4 {[%clk 0:00:19.6]} 0-1

[Event "Early-Titled-Tuesday-Blitz-February-27-2024"]
[Site "Chess.com"]
[Date "2024.02.27"]
[Round "1"]
[White "dosto07"]
[Black "Grandmaster1369"]
[Result "1-0"]
[WhiteElo "2471"]
[BlackElo "2789"]
[TimeControl "180+1"]
[EndTime "8:07:51 PST"]
[Termination "dosto07 won by resignation"]

1. e4 {[%clk 0:03:00.9]} 1... c5 {[%clk 0:02:59.6]} 2. Nf3 {[%clk 0:02:59.6]}
2... e6 {[%clk 0:02:59.7]} 3. c3 {[%clk 0:02:59.1]} 3... d5 {[%clk 0:02:57.1]}
4. exd5 {[%clk 0:02:58.2]} 4... Qxd5 {[%clk 0:02:58]} 5. d4 {[%clk 0:02:58.6]}
5... Nf6 {[%clk 0:02:40.6]} 6. Na3 {[%clk 0:02:58.5]} 6... Nc6 {[%clk
0:02:26.4]} 7. Nb5 {[%clk 0:02:57.2]} 7... Qd8 {[%clk 0:02:19.7]} 8. Be3 {[%clk
0:02:56.8]} 8... Nd5 {[%clk 0:01:50.7]} 9. Bg5 {[%clk 0:02:44.3]} 9... f6 {[%clk
0:01:08.9]} 10. Bd2 {[%clk 0:02:31.6]} 10... a6 {[%clk 0:01:08.3]} 11. Na3
{[%clk 0:02:22.8]} 11... cxd4 {[%clk 0:01:07.2]} 12. Nxd4 {[%clk 0:02:20.4]}
12... Bxa3 {[%clk 0:00:52.1]} 13. Nxc6 {[%clk 0:02:13.2]} 13... bxc6 {[%clk
0:00:53]} 14. bxa3 {[%clk 0:02:08.2]} 14... O-O {[%clk 0:00:52.8]} 15. Bd3
{[%clk 0:01:42.6]} 15... e5 {[%clk 0:00:50.1]} 16. O-O {[%clk 0:01:41.2]} 16...
f5 {[%clk 0:00:50]} 17. c4 {[%clk 0:01:34.8]} 17... Nf4 {[%clk 0:00:24.3]} 18.
Bxf4 {[%clk 0:01:32.8]} 18... exf4 {[%clk 0:00:25.2]} 19. Re1 {[%clk 0:01:22.7]}
19... Qc7 {[%clk 0:00:19.3]} 20. c5 {[%clk 0:01:19.2]} 20... a5 {[%clk
0:00:18.1]} 21. Bc4+ {[%clk 0:01:18.2]} 21... Kh8 {[%clk 0:00:18.4]} 22. Qd6
{[%clk 0:01:10.5]} 22... Qxd6 {[%clk 0:00:13.2]} 23. cxd6 {[%clk 0:01:10.3]}
23... Bd7 {[%clk 0:00:13.9]} 24. Re7 {[%clk 0:01:08.2]} 24... Rad8 {[%clk
0:00:13.8]} 25. Rd1 {[%clk 0:00:59.1]} 25... Rf6 {[%clk 0:00:13.3]} 26. h4
{[%clk 0:00:51.9]} 26... h5 {[%clk 0:00:13.4]} 27. Be2 {[%clk 0:00:50]} 27...
Be8 {[%clk 0:00:08.8]} 28. Bf3 {[%clk 0:00:33.3]} 28... Kg8 {[%clk 0:00:07.5]}
29. Re5 {[%clk 0:00:22.4]} 29... Kf8 {[%clk 0:00:05.8]} 30. Rxa5 {[%clk
0:00:21.4]} 30... Rdxd6 {[%clk 0:00:05.7]} 31. Rxd6 {[%clk 0:00:21.4]} 31...
Rxd6 {[%clk 0:00:06.6]} 32. Rxf5+ {[%clk 0:00:21.5]} 32... Ke7 {[%clk
0:00:04.7]} 33. Rxf4 {[%clk 0:00:21.4]} 33... Rd2 {[%clk 0:00:03.8]} 34. Re4+
{[%clk 0:00:19.6]} 34... Kd8 {[%clk 0:00:03.8]} 35. Re2 {[%clk 0:00:19.5]} 35...
Rd3 {[%clk 0:00:03.2]} 36. a4 {[%clk 0:00:19.4]} 36... Ra3 {[%clk 0:00:03.2]}
37. Kh2 {[%clk 0:00:17.2]} 37... Rxa4 {[%clk 0:00:03.3]} 38. Kg3 {[%clk
0:00:16.4]} 38... Bd7 {[%clk 0:00:01.9]} 39. Rc2 {[%clk 0:00:14]} 39... Kc7
{[%clk 0:00:02.4]} 40. Rc5 {[%clk 0:00:13.8]} 40... g6 {[%clk 0:00:02.8]} 41.
Rg5 {[%clk 0:00:13.5]} 41... Kd6 {[%clk 0:00:03]} 42. Rxg6+ {[%clk 0:00:12.9]}
42... Kc7 {[%clk 0:00:02.5]} 43. Rg5 {[%clk 0:00:13.3]} 43... Rxa2 {[%clk
0:00:03.1]} 44. Bxh5 {[%clk 0:00:13.3]} 44... Rc2 {[%clk 0:00:03.2]} 45. Bf3
{[%clk 0:00:12.9]} 45... c5 {[%clk 0:00:03.6]} 46. h5 {[%clk 0:00:13.4]} 46...
Kd6 {[%clk 0:00:02.6]} 47. h6 {[%clk 0:00:13.5]} 47... Rc1 {[%clk 0:00:03.5]}
48. Rh5 {[%clk 0:00:12.7]} 48... Rh1 {[%clk 0:00:04.4]} 49. Rxh1 {[%clk
0:00:11.7]} 1-0

[Event "Early-Titled-Tuesday-Blitz-February-27-2024"]
[Site "Chess.com"]
[Date "2024.02.27"]
[Round "1"]
[White "mestrefeitosa19"]
[Black "Agent-JL"]
[Result "0-1"]
[WhiteElo "2255"]
[BlackElo "2607"]
[TimeControl "180+1"]
[EndTime "8:07:52 PST"]
[Termination "Agent-JL won on time"]

1. c4 {[%clk 0:03:00.9]} 1... e5 {[%clk 0:02:59.8]} 2. Nc3 {[%clk 0:03:00.7]}
2... Nf6 {[%clk 0:02:58.6]} 3. Nf3 {[%clk 0:03:00.5]} 3... Nc6 {[%clk
0:02:58.2]} 4. e3 {[%clk 0:02:57.1]} 4... Bb4 {[%clk 0:02:57.8]} 5. d4 {[%clk
0:02:48.2]} 5... Bxc3+ {[%clk 0:02:57.5]} 6. bxc3 {[%clk 0:02:47.9]} 6... e4
{[%clk 0:02:55.3]} 7. Nd2 {[%clk 0:02:45.6]} 7... O-O {[%clk 0:02:55.5]} 8. Be2
{[%clk 0:02:46]} 8... d6 {[%clk 0:02:52.5]} 9. O-O {[%clk 0:02:46.2]} 9... Re8
{[%clk 0:02:49]} 10. a4 {[%clk 0:02:46.4]} 10... Na5 {[%clk 0:02:42.7]} 11. Ba3
{[%clk 0:02:45.3]} 11... b6 {[%clk 0:02:36.5]} 12. c5 {[%clk 0:02:40.6]} 12...
bxc5 {[%clk 0:02:23.6]} 13. dxc5 {[%clk 0:02:40.8]} 13... d5 {[%clk 0:02:20.4]}
14. Nb3 {[%clk 0:02:18.2]} 14... c6 {[%clk 0:02:10]} 15. Nxa5 {[%clk 0:02:10.1]}
15... Qxa5 {[%clk 0:02:10.9]} 16. Bb4 {[%clk 0:02:09.4]} 16... Qc7 {[%clk
0:02:07.7]} 17. a5 {[%clk 0:02:09.4]} 17... Be6 {[%clk 0:01:59.9]} 18. a6 {[%clk
0:02:06.7]} 18... Nd7 {[%clk 0:01:58.3]} 19. Qd2 {[%clk 0:01:58.3]} 19... Rab8
{[%clk 0:01:55.6]} 20. Rfb1 {[%clk 0:01:54.4]} 20... Ne5 {[%clk 0:01:35.7]} 21.
h3 {[%clk 0:01:34.5]} 21... Qe7 {[%clk 0:01:26.3]} 22. Qd4 {[%clk 0:01:26.3]}
22... Qg5 {[%clk 0:01:13.9]} 23. Kh2 {[%clk 0:01:17.4]} 23... h5 {[%clk
0:00:54.9]} 24. Ba5 {[%clk 0:01:12.9]} 24... Rbc8 {[%clk 0:00:39.7]} 25. Rb7
{[%clk 0:00:57.6]} 25... Bf5 {[%clk 0:00:24]} 26. Bc7 {[%clk 0:00:54.7]} 26...
Ng6 {[%clk 0:00:17.6]} 27. Bd6 {[%clk 0:00:44.7]} 27... h4 {[%clk 0:00:17.1]}
28. Rxa7 {[%clk 0:00:37.4]} 28... Be6 {[%clk 0:00:17.2]} 29. Rb7 {[%clk
0:00:32.3]} 29... f6 {[%clk 0:00:17]} 30. a7 {[%clk 0:00:29.9]} 30... Ra8 {[%clk
0:00:17.4]} 31. Rb8 {[%clk 0:00:28.9]} 31... Kf7 {[%clk 0:00:14.8]} 32. Qa4
{[%clk 0:00:16]} 32... Ne5 {[%clk 0:00:14.1]} 33. Qa6 {[%clk 0:00:12.6]} 33...
Bc8 {[%clk 0:00:11.2]} 34. Qb6 {[%clk 0:00:09.5]} 34... Bd7 {[%clk 0:00:08.9]}
35. Qc7 {[%clk 0:00:07.1]} 35... Ke6 {[%clk 0:00:06.6]} 36. Rxe8+ {[%clk
0:00:05.9]} 36... Bxe8 {[%clk 0:00:03.8]} 37. Qe7+ {[%clk 0:00:06]} 37... Kf5
{[%clk 0:00:04.5]} 38. Bxe5 {[%clk 0:00:03.6]} 38... fxe5 {[%clk 0:00:05.4]} 39.
g4+ {[%clk 0:00:02.3]} 39... hxg3+ {[%clk 0:00:04.8]} 40. fxg3 {[%clk
0:00:03.2]} 40... Qxe7 {[%clk 0:00:05.4]} 41. Rf1+ {[%clk 0:00:03]} 41... Kg6
{[%clk 0:00:06.1]} 42. h4 {[%clk 0:00:02.5]} 42... Qe6 {[%clk 0:00:06.2]} 43.
h5+ {[%clk 0:00:03.4]} 43... Kh6 {[%clk 0:00:06]} 44. g4 {[%clk 0:00:02.7]}
44... Rxa7 {[%clk 0:00:06.6]} 45. Rf5 {[%clk 0:00:02.5]} 45... Qxf5 {[%clk
0:00:06.6]} 46. Kg3 {[%clk 0:00:01.9]} 46... Bxh5 {[%clk 0:00:07.5]} 0-1

[Event "Early-Titled-Tuesday-Blitz-February-27-2024"]
[Site "Chess.com"]
[Date "2024.02.27"]
[Round "1"]
[White "Kunalm64"]
[Black "Alblooshi_Hamad"]
[Result "1-0"]
[WhiteElo "2577"]
[BlackElo "2168"]
[TimeControl "180+1"]
[EndTime "8:07:52 PST"]
[Termination "Kunalm64 won by checkmate"]

1. e4 {[%clk 0:03:00.9]} 1... e5 {[%clk 0:02:59.5]} 2. Nf3 {[%clk 0:02:59.6]}
2... Nc6 {[%clk 0:02:59.3]} 3. Bb5 {[%clk 0:02:59.2]} 3... a6 {[%clk 0:02:59.5]}
4. Ba4 {[%clk 0:02:56.6]} 4... Nf6 {[%clk 0:02:58.7]} 5. O-O {[%clk 0:02:54.7]}
5... Be7 {[%clk 0:02:57.1]} 6. Re1 {[%clk 0:02:54.1]} 6... b5 {[%clk 0:02:57]}
7. Bb3 {[%clk 0:02:53.8]} 7... d6 {[%clk 0:02:56.9]} 8. c3 {[%clk 0:02:53.7]}
8... O-O {[%clk 0:02:51.4]} 9. d4 {[%clk 0:02:52.7]} 9... exd4 {[%clk 0:02:47]}
10. cxd4 {[%clk 0:02:52.1]} 10... Bg4 {[%clk 0:02:47.7]} 11. Be3 {[%clk
0:02:48.3]} 11... d5 {[%clk 0:02:38.6]} 12. e5 {[%clk 0:02:44.2]} 12... Ne4
{[%clk 0:02:38.8]} 13. h3 {[%clk 0:02:38.8]} 13... Bh5 {[%clk 0:02:36.8]} 14.
Nbd2 {[%clk 0:02:27.9]} 14... Nxd2 {[%clk 0:02:33.9]} 15. Qxd2 {[%clk
0:02:20.9]} 15... Bxf3 {[%clk 0:02:33.2]} 16. gxf3 {[%clk 0:02:20.5]} 16... Bb4
{[%clk 0:02:33]} 17. Qc2 {[%clk 0:02:19.8]} 17... Bxe1 {[%clk 0:02:33]} 18. Qxc6
{[%clk 0:02:18]} 18... Bb4 {[%clk 0:02:14.7]} 19. Bxd5 {[%clk 0:02:16.3]} 19...
Ra7 {[%clk 0:02:04.6]} 20. f4 {[%clk 0:01:59.8]} 20... Ba5 {[%clk 0:01:22.7]}
21. a4 {[%clk 0:01:42.9]} 21... bxa4 {[%clk 0:01:18.5]} 22. Rxa4 {[%clk
0:01:36.3]} 22... Bb6 {[%clk 0:01:19]} 23. f5 {[%clk 0:01:13.4]} 23... Kh8
{[%clk 0:01:10.3]} 24. Bg2 {[%clk 0:01:02]} 24... f6 {[%clk 0:01:04.8]} 25. e6
{[%clk 0:01:00.5]} 25... Qd6 {[%clk 0:01:05.2]} 26. Qxd6 {[%clk 0:00:47.7]}
26... cxd6 {[%clk 0:01:05.3]} 27. Bc6 {[%clk 0:00:48.2]} 27... a5 {[%clk
0:00:45.6]} 28. Bd7 {[%clk 0:00:47.4]} 28... Bd8 {[%clk 0:00:44.3]} 29. b4
{[%clk 0:00:42.8]} 29... Rb7 {[%clk 0:00:35.7]} 30. b5 {[%clk 0:00:42.4]} 30...
g6 {[%clk 0:00:33.1]} 31. fxg6 {[%clk 0:00:35.3]} 31... hxg6 {[%clk 0:00:33.1]}
32. d5 {[%clk 0:00:35]} 32... Kg7 {[%clk 0:00:30.9]} 33. Bc6 {[%clk 0:00:27.9]}
33... Rb8 {[%clk 0:00:29.4]} 34. Bd2 {[%clk 0:00:21.8]} 34... f5 {[%clk
0:00:27.2]} 35. Bxa5 {[%clk 0:00:21.5]} 35... Bxa5 {[%clk 0:00:27.5]} 36. Rxa5
{[%clk 0:00:21.6]} 36... Kf6 {[%clk 0:00:27.4]} 37. f4 {[%clk 0:00:20.8]} 37...
g5 {[%clk 0:00:25.6]} 38. fxg5+ {[%clk 0:00:20.8]} 38... Kxg5 {[%clk 0:00:20.5]}
39. e7 {[%clk 0:00:21.1]} 39... Rg8 {[%clk 0:00:18.6]} 40. Kf2 {[%clk
0:00:20.5]} 40... Kf4 {[%clk 0:00:17.9]} 41. Ra4+ {[%clk 0:00:18.6]} 41... Ke5
{[%clk 0:00:18.1]} 42. Ra1 {[%clk 0:00:18]} 42... Kf6 {[%clk 0:00:16.4]} 43. Re1
{[%clk 0:00:18.5]} 43... Kf7 {[%clk 0:00:16.6]} 44. e8=Q+ {[%clk 0:00:14.4]}
44... Rgxe8 {[%clk 0:00:17.1]} 45. Rxe8 {[%clk 0:00:14.9]} 45... Rxe8 {[%clk
0:00:16.9]} 46. Bxe8+ {[%clk 0:00:15.4]} 46... Kxe8 {[%clk 0:00:17.8]} 47. Kf3
{[%clk 0:00:15.9]} 47... Kd7 {[%clk 0:00:18]} 48. Kf4 {[%clk 0:00:16.2]} 48...
Kc7 {[%clk 0:00:18.9]} 49. Kxf5 {[%clk 0:00:16.6]} 49... Kb6 {[%clk 0:00:19.8]}
50. Ke6 {[%clk 0:00:17.2]} 50... Kxb5 {[%clk 0:00:20.7]} 51. Kxd6 {[%clk
0:00:17.3]} 51... Kc4 {[%clk 0:00:21.2]} 52. Ke6 {[%clk 0:00:18]} 52... Kd4
{[%clk 0:00:22.1]} 53. d6 {[%clk 0:00:18.6]} 53... Ke4 {[%clk 0:00:23]} 54. d7
{[%clk 0:00:19.5]} 54... Kf4 {[%clk 0:00:23.9]} 55. d8=Q {[%clk 0:00:20]} 55...
Kg3 {[%clk 0:00:24.8]} 56. Qg5+ {[%clk 0:00:20.1]} 56... Kxh3 {[%clk 0:00:25.7]}
57. Kf5 {[%clk 0:00:20.5]} 57... Kh2 {[%clk 0:00:26.3]} 58. Kf4 {[%clk
0:00:21.2]} 58... Kh1 {[%clk 0:00:27.2]} 59. Kf3 {[%clk 0:00:21.9]} 59... Kh2
{[%clk 0:00:28.1]} 60. Qg2# {[%clk 0:00:22.2]} 1-0